bitfinex-derivatives/quotes_BTCF0:USTF0_20260113
["timestamp","ask_amount","ask_price","bid_price","bid_amount"]
[1768335156480,0.0986908,94490.0,94473.0,0.52061252]
[1768335156676,0.19204688,94490.0,94473.0,0.52061252]
[1768335157074,0.0986908,94490.0,94473.0,0.52061252]
[1768335157288,0.19204688,94490.0,94473.0,0.52061252]
[1768335158087,0.19209688,94490.0,94473.0,0.52061252]
[1768335159291,0.0987408,94490.0,94473.0,0.52061252]
[1768335159989,0.0987408,94490.0,94473.0,0.50261252]
[1768335161188,0.0987408,94490.0,94473.0,0.42]
[1768335161398,0.0986908,94480.0,94464.0,0.09532]
[1768335161593,0.0986908,94480.0,94464.0,0.56532]
[1768335161996,0.0986908,94480.0,94464.0,0.15532]
[1768335162293,0.0986908,94480.0,94464.0,0.44532]
[1768335162683,0.0986908,94480.0,94464.0,0.35]
[1768335162884,0.0986908,94479.0,94464.0,0.06]
[1768335163084,0.11040161,94478.0,94464.0,0.06]
[1768335163294,0.0986908,94475.0,94464.0,0.06]
[1768335163490,0.0986908,94475.0,94464.0,0.31]
[1768335164189,0.0986908,94475.0,94462.0,0.09532]
[1768335164190,0.0986908,94474.0,94462.0,0.09532]
[1768335164395,0.0986908,94472.0,94462.0,0.38532]
[1768335164893,0.0986908,94472.0,94462.0,0.29]
[1768335166196,0.0986908,94472.0,94462.0,0.31]
[1768335166696,0.0986908,94472.0,94462.0,0.3]
[1768335166997,5e-05,94474.0,94462.0,0.3]
[1768335167200,0.2686,94473.0,94462.0,0.3]
[1768335167390,0.0986908,94488.0,94463.0,0.09308225]
[1768335167590,0.1092778,94487.0,94463.0,0.419]
[1768335167790,0.1092778,94487.0,94464.0,0.00455274]
[1768335167991,0.1092778,94487.0,94465.0,0.00455274]
[1768335168194,0.1092778,94487.0,94465.0,0.46455274]
[1768335169401,0.1092788,94485.0,94465.0,0.46455274]
[1768335169899,0.0986908,94485.0,94465.0,0.46455274]
[1768335170790,0.0986908,94478.0,94465.0,0.46]
[1768335171191,0.0986908,94475.0,94465.0,0.05]
[1768335171395,0.19850441,94475.0,94465.0,0.05]
[1768335171594,0.0986908,94474.0,94465.0,0.05]
[1768335172799,0.0986908,94471.0,94456.0,0.09532]
[1768335173001,0.0986908,94471.0,94456.0,0.48532]
[1768335174599,0.010589,94475.0,94456.0,0.05]
[1768335174798,0.10393677,94490.0,94456.0,0.05]
[1768335174799,0.1092788,94477.0,94457.0,0.00320778]
[1768335175000,0.1092788,94477.0,94457.0,0.33]
[1768335175201,0.0986908,94477.0,94457.0,0.33]
[1768335176100,0.0986908,94477.0,94457.0,0.304]
[1768335176316,0.20909341,94474.0,94457.0,0.044]
[1768335176493,0.0986908,94470.0,94457.0,0.044]
[1768335177105,0.0986908,94470.0,94457.0,0.334]
[1768335177303,0.0986908,94467.0,94457.0,0.044]
[1768335178200,0.0986908,94467.0,94457.0,0.024]
[1768335178394,0.0986908,94467.0,94457.0,0.044]
[1768335178599,0.0986908,94466.0,94457.0,0.044]
[1768335179402,0.0986908,94473.0,94457.0,0.044]
[1768335179602,5e-05,94466.0,94457.0,0.044]
[1768335179803,5e-05,94466.0,94457.0,0.344]
[1768335180201,0.0986908,94473.0,94457.0,0.344]
[1768335180402,0.0986908,94473.0,94457.0,0.024]
[1768335180603,0.0986908,94473.0,94457.0,0.334]
[1768335180905,0.0986908,94479.0,94457.0,0.334]
[1768335181107,0.0986908,94479.0,94457.0,0.4037779]
[1768335181400,0.0986908,94479.0,94458.0,0.09532]
[1768335181600,0.0986908,94479.0,94458.0,0.49532]
[1768335181905,0.1092788,94479.0,94458.0,0.49532]
[1768335182093,0.0986908,94479.0,94458.0,0.4]
[1768335182300,0.010588,94477.0,94459.0,0.09532]
[1768335182493,0.010588,94477.0,94459.0,0.16532]
[1768335182802,0.010588,94477.0,94459.0,0.43532]
[1768335183291,0.010588,94477.0,94459.0,0.14532]
[1768335183492,0.0987408,94479.0,94459.0,0.14532]
[1768335183698,0.010588,94478.0,94459.0,0.43432]
[1768335184107,0.1092788,94478.0,94459.0,0.43432]
[1768335185003,0.1093288,94478.0,94459.0,0.43432]
[1768335185396,0.010588,94476.0,94459.0,0.43432]
[1768335185905,0.0987408,94478.0,94459.0,0.43432]
[1768335185906,0.010589,94470.0,94459.0,0.14432]
[1768335186106,0.010589,94470.0,94440.0,0.09]
[1768335186107,0.09286836,94459.0,94440.0,0.09]
[1768335186409,0.10125516,94465.0,94441.0,0.00718328]
[1768335186596,0.09286836,94462.0,94441.0,0.44]
[1768335187001,0.10345836,94461.0,94442.0,0.00529317]
[1768335187303,0.10345936,94454.0,94438.0,0.00011227]
[1768335187504,0.09066516,94453.0,94438.0,0.27011227]
[1768335187695,0.09066516,94453.0,94424.0,0.09532]
[1768335187696,0.09286836,94449.0,94425.0,0.07693338]
[1768335187894,0.09286836,94449.0,94427.0,0.00302433]
[1768335188098,0.09286836,94455.0,94432.0,0.00302433]
[1768335188401,0.09286836,94455.0,94432.0,0.41302433]
[1768335188600,0.09286836,94453.0,94432.0,0.41302433]
[1768335189004,0.09286836,94453.0,94432.0,0.41529317]
[1768335189207,0.09286836,94451.0,94432.0,0.06]
[1768335189699,0.09286836,94449.0,94433.0,0.00529317]
[1768335189898,0.09286836,94449.0,94433.0,0.06]
[1768335190107,0.09286836,94449.0,94435.0,0.00529317]
[1768335190308,0.09286836,94449.0,94435.0,0.06529317]
[1768335190497,0.09286836,94449.0,94435.0,0.46529317]
[1768335191402,0.09286836,94449.0,94435.0,0.44329317]
[1768335191900,0.09286836,94446.0,94435.0,0.03]
[1768335193105,0.09286836,94446.0,94435.0,1e-06]
[1768335193106,0.010592,94445.0,94435.0,1e-06]
[1768335193402,0.010592,94445.0,94416.0,0.1]
[1768335193403,0.09286836,94433.0,94416.0,0.1]
[1768335193602,8.177e-05,94432.0,94416.0,0.29]
[1768335193805,0.09286836,94447.0,94422.0,0.00266157]
[1768335193995,0.09536,94446.0,94423.0,0.00266157]
[1768335194204,0.10346036,94445.0,94423.0,0.06266157]
[1768335194506,0.10346036,94445.0,94423.0,0.31]
[1768335194701,0.19412552,94445.0,94423.0,0.31]
[1768335194908,0.09286836,94444.0,94423.0,0.31]
[1768335195505,0.09286836,94442.0,94423.0,0.31]
[1768335195706,0.09286836,94440.0,94423.0,0.31]
[1768335196007,0.09286836,94439.0,94423.0,0.06]
[1768335196210,0.09066516,94440.0,94423.0,0.06]
[1768335196211,0.09286836,94435.0,94423.0,0.06]
[1768335196502,0.09329977,94440.0,94423.0,0.01]
[1768335196503,0.09018093,94440.0,94423.0,0.01]
[1768335197606,0.09018093,94440.0,94424.0,0.09536]
[1768335197903,0.09018093,94438.0,94424.0,0.15536]
[1768335198099,0.010592,94444.0,94424.0,0.06]
[1768335198100,0.09018093,94437.0,94424.0,0.06]
[1768335198297,0.09018093,94443.0,94424.0,0.06]
[1768335199006,0.09018093,94442.0,94424.0,0.06]
[1768335199210,0.09018093,94442.0,94424.0,0.015]
[1768335200008,0.09018093,94441.0,94424.0,0.015]
[1768335200306,0.09018093,94435.0,94413.0,0.00529588]
[1768335200512,0.09018093,94432.0,94414.0,0.09536]
[1768335200709,0.09018093,94432.0,94414.0,0.54536]
[1768335201300,0.010594,94430.0,94414.0,0.45]
[1768335201503,0.010592,94447.0,94415.0,0.09536]
[1768335201504,0.09018093,94424.0,94415.0,0.09536]
[1768335201801,0.09018093,94424.0,94415.0,0.05]
[1768335202807,0.09018093,94422.0,94398.0,0.0964257]
[1768335203015,0.09018093,94422.0,94399.0,0.09536]
[1768335203214,0.09018093,94422.0,94399.0,0.55536]
[1768335204712,0.09018093,94420.0,94400.0,0.09536]
[1768335204914,0.09018093,94420.0,94400.0,0.51536]
[1768335206106,0.09155146,94426.0,94401.0,0.09477151]
[1768335206318,0.09018093,94425.0,94401.0,0.55477151]
[1768335207002,0.09018093,94424.0,94401.0,0.52177151]
[1768335207411,0.0001588,94429.0,94402.0,0.0964257]
[1768335207613,0.0001588,94429.0,94403.0,0.0964257]
[1768335207807,0.0001588,94429.0,94404.0,0.0964257]
[1768335208007,0.0001588,94429.0,94405.0,0.0964257]
[1768335208320,0.0001588,94429.0,94406.0,0.0964257]
[1768335208508,0.0001588,94429.0,94406.0,0.5464257]
[1768335208704,0.0001588,94429.0,94407.0,0.0964257]
[1768335208917,0.0001588,94429.0,94409.0,0.19119721]
[1768335209213,0.0001588,94429.0,94411.0,0.19119721]
[1768335209409,0.0001588,94429.0,94412.0,0.19119721]
[1768335209614,0.010593,94438.0,94414.0,0.09477151]
[1768335209814,0.010593,94436.0,94415.0,0.09477151]
[1768335210018,0.010593,94436.0,94415.0,0.50477151]
[1768335211603,0.010593,94434.0,94415.0,0.50477151]
[1768335211913,0.19232539,94434.0,94415.0,0.41]
[1768335212116,0.09018093,94432.0,94415.0,0.2]
[1768335212319,0.09018093,94431.0,94411.0,0.00015888]
[1768335212519,0.09018093,94439.0,94412.0,0.09477151]
[1768335212817,0.09018093,94436.0,94412.0,0.14477151]
[1768335213119,0.10077393,94435.0,94412.0,0.51477151]
[1768335213826,0.09018093,94435.0,94412.0,0.51477151]
[1768335214519,0.09018093,94442.0,94414.0,0.09477151]
[1768335214712,0.010592,94443.0,94416.0,0.0964257]
[1768335214918,0.010592,94441.0,94418.0,0.09598344]
[1768335215219,0.010592,94441.0,94419.0,0.09598344]
[1768335215416,0.010593,94440.0,94419.0,0.15598344]
[1768335216219,0.09354816,94447.0,94419.0,0.15598344]
[1768335216422,0.10414016,94446.0,94419.0,0.15598344]
[1768335216808,0.10414016,94446.0,94420.0,0.09343266]
[1768335217008,0.10414016,94446.0,94420.0,0.15343266]
[1768335217211,0.09354816,94464.0,94440.0,0.09343266]
[1768335217409,0.09354816,94464.0,94442.0,0.09343266]
[1768335217612,0.01059,94467.0,94444.0,0.1894161]
[1768335217820,0.010589,94470.0,94447.0,0.1894161]
[1768335218017,0.010589,94470.0,94448.0,0.09343266]
[1768335218220,0.010589,94468.0,94448.0,0.41343266]
[1768335219420,0.010589,94468.0,94449.0,0.09343266]
[1768335219716,0.10413716,94471.0,94450.0,0.18678415]
[1768335220022,0.010589,94471.0,94454.0,0.09598344]
[1768335220314,0.010589,94471.0,94456.0,0.09343266]
[1768335220520,0.010589,94471.0,94456.0,0.14343266]
[1768335221113,0.09335149,94470.0,94456.0,0.14598344]
[1768335221309,0.09335149,94470.0,94457.0,0.09598344]
[1768335221617,5e-05,94478.0,94461.0,0.09598344]
[1768335221809,5e-05,94478.0,94462.0,0.90684]
[1768335222010,5e-05,94478.0,94462.0,0.05]
[1768335222212,0.010638,94478.0,94463.0,0.42428]
[1768335222419,0.010638,94478.0,94463.0,0.46728]
[1768335222616,5e-05,94478.0,94464.0,1.0022]
[1768335222822,5e-05,94478.0,94464.0,1.0522]
[1768335223322,0.0053414,94493.0,94469.0,0.1894161]
[1768335223519,0.09340149,94490.0,94474.0,0.09343266]
[1768335223824,0.09354816,94503.0,94474.0,0.09343266]
[1768335223825,0.00232769,94515.0,94475.0,0.09536]
[1768335224006,0.00232769,94515.0,94475.0,0.06]
[1768335224007,0.09335149,94485.0,94475.0,0.06]
[1768335224210,0.09335149,94485.0,94467.0,0.010589]
[1768335224211,0.09335149,94490.0,94476.0,1.00216]
[1768335224718,1.5,94496.0,94476.0,1.00216]
[1768335225122,1.5,94496.0,94477.0,1.00212]
[1768335225322,0.09335149,94490.0,94477.0,1.00212]
[1768335226520,0.09354816,94486.0,94475.0,0.03476205]
[1768335226722,0.09354816,94486.0,94440.0,0.47483149]
[1768335226723,0.09354816,94484.0,94450.0,0.09335149]
[1768335226927,0.09335149,94470.0,94451.0,0.09536]
[1768335227125,0.09335149,94470.0,94451.0,0.53304]
[1768335227321,0.09354816,94473.0,94451.0,0.53304]
[1768335227724,0.09335149,94480.0,94451.0,0.53304]
[1768335228129,0.09335149,94480.0,94451.0,0.543631]
[1768335228422,0.09335149,94480.0,94460.0,0.09335149]
[1768335228727,0.0001588,94475.0,94460.0,0.06]
[1768335230128,0.0001588,94475.0,94461.0,0.09536]
[1768335230427,0.0001588,94475.0,94461.0,0.15536]
[1768335230623,0.0001588,94475.0,94461.0,0.06]
[1768335230824,0.0001588,94475.0,94462.0,0.09536]
[1768335231028,0.0001588,94475.0,94462.0,0.15536]
[1768335231625,0.0001588,94475.0,94462.0,0.06]
[1768335231817,0.0001588,94475.0,94462.0,0.15536]
[1768335232921,0.0001588,94475.0,94462.0,0.06]
[1768335233120,0.0107478,94475.0,94463.0,0.09536]
[1768335233321,0.0107478,94475.0,94463.0,0.15536]
[1768335234127,0.09354816,94472.0,94463.0,0.06]
[1768335234326,0.09354816,94472.0,94463.0,0.15536]
[1768335234831,0.09354816,94472.0,94463.0,0.01]
[1768335234832,0.10413716,94472.0,94463.0,0.01]
[1768335235924,0.09354816,94472.0,94463.0,0.01]
[1768335236830,0.10413716,94471.0,94463.0,0.01]
[1768335237023,0.10413716,94469.0,94453.0,0.00529364]
[1768335237220,0.09354816,94469.0,94459.0,0.09532]
[1768335237434,0.010589,94468.0,94459.0,0.14532]
[1768335237632,0.09354816,94469.0,94459.0,0.02]
[1768335238027,0.10413816,94460.0,94459.0,0.02]
[1768335238227,0.10413816,94460.0,94454.0,0.09532]
[1768335238532,0.10413816,94460.0,94454.0,0.05]
[1768335238730,0.10413916,94458.0,94441.0,0.90648]
[1768335238931,0.09354816,94458.0,94442.0,0.09532]
[1768335239134,0.09354816,94458.0,94442.0,0.07]
[1768335239319,0.09354816,94458.0,94443.0,0.09532]
[1768335239526,0.09354816,94458.0,94443.0,0.14532]
[1768335240032,0.09354816,94458.0,94424.0,0.08]
[1768335240033,0.010592,94448.0,94424.0,0.08]
[1768335240235,0.09354816,94437.0,94424.0,0.03]
[1768335240531,0.09354816,94457.0,94432.0,0.0329816]
[1768335240830,0.010591,94452.0,94434.0,0.0329816]
[1768335241029,0.010591,94452.0,94434.0,0.0429816]
[1768335241428,0.010591,94451.0,94437.0,0.12896504]
[1768335241628,0.09335149,94460.0,94440.0,0.02307131]
[1768335241835,0.09335149,94460.0,94440.0,0.1164228]
[1768335242328,0.01059,94458.0,94440.0,0.02307131]
[1768335242635,0.09335149,94460.0,94434.0,0.0001588]
[1768335242838,0.09354816,94459.0,94434.0,0.0201588]
[1768335243337,0.010592,94448.0,94434.0,0.0201588]
[1768335243738,0.09335149,94450.0,94434.0,0.0201588]
[1768335244342,0.010591,94452.0,94434.0,0.0201588]
[1768335245235,0.1913893,94459.0,94434.0,0.0201588]
[1768335245440,0.010591,94450.0,94434.0,0.0201588]
[1768335245739,0.09335149,94444.0,94422.0,0.0200215]
[1768335245931,0.10489014,94442.0,94423.0,0.09536]
[1768335246131,0.09429814,94442.0,94423.0,0.13936]
[1768335246531,0.09335149,94440.0,94423.0,0.06]
[1768335246736,0.19213928,94439.0,94423.0,0.06]
[1768335246939,0.010594,94431.0,94419.0,0.09536]
[1768335247242,0.09335149,94430.0,94419.0,0.14536]
[1768335247540,0.010594,94431.0,94419.0,0.14536]
[1768335248530,0.010594,94427.0,94419.0,0.05]
[1768335248743,0.09429814,94437.0,94419.0,0.05]
[1768335248938,0.010593,94432.0,94419.0,0.05]
[1768335249236,0.010593,94433.0,94419.0,0.05]
[1768335249845,0.010593,94432.0,94419.0,0.05]
[1768335250439,0.010593,94435.0,94419.0,0.05]
[1768335250638,0.09429814,94437.0,94419.0,0.05]
[1768335251757,0.010594,94428.0,94419.0,0.05]
[1768335252144,0.09335149,94430.0,94419.0,0.06]
[1768335252352,0.010594,94427.0,94419.0,0.06]
[1768335252752,0.09335149,94430.0,94419.0,0.06]
[1768335253152,0.09429814,94435.0,94419.0,0.06]
[1768335253358,0.09536,94437.0,94419.0,0.06]
[1768335253558,0.010593,94434.0,94419.0,0.06]
[1768335253760,0.09536,94437.0,94419.0,0.06]
[1768335253948,0.09536,94437.0,94419.0,0.044]
[1768335254560,0.010593,94434.0,94419.0,0.044]
[1768335254951,0.105953,94437.0,94419.0,0.044]
[1768335255150,0.010593,94436.0,94419.0,0.044]
[1768335255350,0.010593,94434.0,94419.0,0.044]
[1768335256358,0.010593,94432.0,94419.0,0.044]
[1768335257059,0.010594,94430.0,94419.0,0.044]
[1768335257853,0.010593,94431.0,94419.0,0.044]
[1768335258458,0.09045186,94434.0,94419.0,0.044]
[1768335258764,0.010594,94429.0,94419.0,0.044]
[1768335259055,0.0001588,94436.0,94419.0,0.044]
[1768335259261,0.09335149,94430.0,94419.0,0.044]
[1768335259854,0.10394549,94430.0,94419.0,0.044]
[1768335261256,0.09335149,94430.0,94419.0,0.044]
[1768335261758,0.010593,94431.0,94419.0,0.03]
[1768335261958,0.09335149,94430.0,94419.0,0.03]
[1768335262459,0.09335149,94430.0,94419.0,0.06]
[1768335262460,0.09045186,94427.0,94419.0,0.06]
[1768335263565,0.09335149,94430.0,94419.0,0.06]
[1768335264956,0.09045186,94429.0,94419.0,0.06]
[1768335265151,0.09045186,94427.0,94413.0,0.00529588]
[1768335265357,0.09045186,94427.0,94413.0,0.05529588]
[1768335267554,0.09335149,94423.0,94413.0,0.05529588]
[1768335267759,0.09348518,94425.0,94413.0,0.05529588]
[1768335268556,0.09045186,94426.0,94413.0,0.05529588]
[1768335269358,0.09045186,94426.0,94413.0,0.04429588]
[1768335273773,0.09335149,94430.0,94413.0,0.12269366]
[1768335274169,0.09335149,94430.0,94413.0,0.04429588]
[1768335274565,0.18380335,94430.0,94413.0,0.04429588]
[1768335276874,0.09507765,94429.0,94413.0,0.04429588]
[1768335277169,0.0001588,94436.0,94414.0,0.07749515]
[1768335277369,0.09507765,94429.0,94414.0,0.06]
[1768335278174,0.09507765,94429.0,94404.0,0.09212557]
[1768335278175,0.09507765,94416.0,94404.0,0.09536]
[1768335278474,0.09507765,94416.0,94404.0,0.14536]
[1768335279676,0.010595,94416.0,94404.0,0.14536]
[1768335279973,0.010595,94419.0,94404.0,0.14536]
[1768335280374,0.09507765,94417.0,94404.0,0.05]
[1768335281968,0.09507765,94428.0,94406.0,0.09637374]
[1768335282174,0.09536,94427.0,94406.0,0.14637374]
[1768335282375,0.09507765,94426.0,94406.0,0.14637374]
[1768335282577,0.10567165,94426.0,94406.0,0.14637374]
[1768335283375,0.010594,94423.0,94406.0,0.05]
[1768335284577,0.09507765,94424.0,94406.0,0.05]
[1768335285088,0.10567165,94424.0,94406.0,0.05]
[1768335285473,0.10567165,94424.0,94406.0,0.02]
[1768335286081,0.09507765,94424.0,94406.0,0.11637374]
[1768335288282,0.010594,94426.0,94406.0,0.11637374]
[1768335288681,0.00529476,94433.0,94413.0,0.18849931]
[1768335288875,0.00529476,94433.0,94414.0,0.18849931]
[1768335289075,0.01588776,94433.0,94415.0,0.09637374]
[1768335289377,0.00529476,94433.0,94415.0,0.15637374]
[1768335289789,0.09507765,94432.0,94415.0,0.06]
[1768335289979,0.09507765,94426.0,94415.0,0.05680731]
[1768335290579,0.10567165,94426.0,94415.0,0.05680731]
[1768335291182,0.010594,94424.0,94415.0,0.05680731]
[1768335291782,0.010595,94420.0,94415.0,3.1e-07]
[1768335291975,0.09123228,94424.0,94415.0,3.1e-07]
[1768335292286,0.09507765,94423.0,94415.0,3.1e-07]
[1768335292992,0.010594,94422.0,94415.0,3.1e-07]
[1768335293188,0.10567265,94420.0,94407.0,0.06936031]
[1768335293482,0.09507765,94420.0,94407.0,0.10936031]
[1768335294090,0.010594,94422.0,94407.0,0.10936031]
[1768335294775,0.09507765,94427.0,94408.0,0.09637374]
[1768335294980,0.10037241,94433.0,94410.0,0.09637374]
[1768335295182,0.10037241,94433.0,94411.0,0.09637374]
[1768335295384,0.10037241,94433.0,94411.0,0.15637374]
[1768335295688,0.010594,94425.0,94411.0,0.06]
[1768335295885,0.18630993,94428.0,94411.0,0.06]
[1768335296086,0.09507765,94424.0,94411.0,0.06]
[1768335296279,0.010595,94419.0,94411.0,0.06]
[1768335296477,0.09507765,94420.0,94411.0,1e-06]
[1768335296682,0.00529476,94433.0,94411.0,1e-06]
[1768335296683,0.010594,94425.0,94411.0,1e-06]
[1768335297987,0.09507765,94416.0,94396.0,0.09637374]
[1768335298178,0.09507765,94416.0,94397.0,0.09536]
[1768335298383,0.09507765,94416.0,94397.0,0.53536]
[1768335298890,0.09523653,94416.0,94398.0,0.010597]
[1768335299093,0.09523653,94416.0,94398.0,0.340597]
[1768335299390,0.09523653,94416.0,94398.0,0.33]
[1768335299785,0.09523653,94416.0,94398.0,0.340597]
[1768335301085,0.09344852,94410.0,94382.0,0.09637374]
[1768335301289,0.00015888,94416.0,94382.0,0.09637374]
[1768335301290,0.09507765,94405.0,94383.0,0.09536]
[1768335301484,0.09507765,94405.0,94384.0,0.09637374]
[1768335301690,0.00015888,94416.0,94395.0,0.09637374]
[1768335301888,0.00015888,94416.0,94397.0,0.18849931]
[1768335302084,0.10567265,94421.0,94397.0,0.15637374]
[1768335302280,0.09123228,94413.0,94398.0,0.0954]
[1768335302483,0.09507765,94412.0,94398.0,0.1554]
[1768335303086,0.09507765,94412.0,94398.0,0.06]
[1768335303981,0.19690593,94409.0,94398.0,0.06]
[1768335304181,0.18630993,94409.0,94398.0,0.05984112]
[1768335305090,0.00015888,94414.0,94398.0,0.05984112]
[1768335305677,0.010594,94426.0,94402.0,0.09423533]
[1768335305875,0.010594,94424.0,94402.0,0.15407645]
[1768335306287,0.09249672,94440.0,94417.0,0.010595]
[1768335306487,0.09690632,94457.0,94432.0,0.09423533]
[1768335306684,0.09690632,94472.0,94442.0,0.09423533]
[1768335306887,0.00529252,94473.0,94449.0,0.18719687]
[1768335306888,0.010589,94471.0,94449.0,0.18719687]
[1768335307088,0.010589,94467.0,94450.0,0.0954]
[1768335307389,0.01059,94466.0,94450.0,0.0954]
[1768335307582,0.010589,94469.0,94450.0,0.0954]
[1768335307892,0.01059,94467.0,94450.0,0.0954]
[1768335308186,0.09690632,94470.0,94450.0,0.0954]
[1768335308386,0.01059,94462.0,94450.0,0.0954]
[1768335308588,0.01059,94460.0,94450.0,0.0954]
[1768335309290,0.09690632,94468.0,94435.0,0.00015888]
[1768335309493,0.09344852,94470.0,94436.0,0.09536]
[1768335309494,0.09690632,94457.0,94436.0,0.09536]
[1768335310287,0.09690632,94464.0,94440.0,0.19778887]
[1768335310479,0.09690632,94464.0,94444.0,0.010592]
[1768335310679,0.18785672,94470.0,94447.0,0.010592]
[1768335310884,0.010589,94468.0,94444.0,0.18719687]
[1768335311186,0.010589,94468.0,94445.0,0.09536]
[1768335311383,0.010589,94472.0,94449.0,0.18719687]
[1768335311589,0.09690632,94467.0,94450.0,0.09536]
[1768335311893,0.10749632,94467.0,94450.0,0.09536]
[1768335312088,0.10749632,94467.0,94441.0,0.09423533]
[1768335312089,0.010591,94456.0,94443.0,0.09423533]
[1768335312282,0.09690632,94467.0,94444.0,0.09536]
[1768335313493,0.01059,94464.0,94444.0,0.09536]
[1768335313987,0.09690632,94467.0,94444.0,0.09536]
[1768335315388,0.01059,94461.0,94444.0,0.09536]
[1768335315990,0.09690632,94467.0,94444.0,0.09536]
[1768335316289,0.01059,94458.0,94444.0,0.09536]
[1768335316489,0.01059,94458.0,94438.0,0.09423292]
[1768335316784,0.010591,94455.0,94439.0,0.09536]
[1768335316991,0.010591,94455.0,94440.0,0.09536]
[1768335317192,0.09689165,94457.0,94440.0,0.09536]
[1768335317395,0.0001588,94457.0,94440.0,0.09536]
[1768335317883,0.0001588,94457.0,94436.0,0.10482592]
[1768335318084,0.09673285,94456.0,94437.0,0.09536]
[1768335318392,0.09673285,94456.0,94438.0,0.010593]
[1768335318588,0.0001588,94457.0,94438.0,0.010593]
[1768335318989,0.0001588,94457.0,94437.0,0.18959292]
[1768335319184,0.0001588,94457.0,94439.0,0.09423292]
[1768335319383,0.0001588,94457.0,94440.0,0.18636594]
[1768335319586,0.0002088,94457.0,94440.0,0.18636594]
[1768335320280,0.0002088,94457.0,94440.0,0.19695794]
[1768335320592,0.0002088,94457.0,94441.0,0.09423292]
[1768335322694,0.0002088,94457.0,94441.0,0.10482492]
[1768335322889,0.0002088,94457.0,94441.0,0.09423292]
[1768335323284,0.0002088,94457.0,94441.0,0.10482492]
[1768335323585,0.0002088,94457.0,94441.0,0.09423292]
[1768335324095,0.0002088,94457.0,94441.0,0.11423292]
[1768335324690,0.0002088,94457.0,94441.0,0.10423292]
[1768335325082,0.0002088,94457.0,94441.0,0.11213302]
[1768335326794,0.0002088,94457.0,94441.0,0.20636594]
[1768335327197,0.0107998,94457.0,94441.0,0.20636594]
[1768335327495,0.0002088,94457.0,94441.0,0.20636594]
[1768335327696,0.010591,94456.0,94441.0,0.20636594]
[1768335327893,0.010591,94454.0,94441.0,0.20636594]
[1768335328192,0.010591,94456.0,94441.0,0.20636594]
[1768335328391,0.0002588,94457.0,94442.0,0.09423292]
[1768335328591,0.0002588,94457.0,94442.0,0.12423292]
[1768335329191,0.0002588,94457.0,94443.0,0.18636594]
[1768335329402,0.0002588,94457.0,94446.0,0.010592]
[1768335330286,0.0002588,94457.0,94444.0,0.09423292]
[1768335330701,0.09536,94477.0,94451.0,0.18636594]
[1768335330999,0.010589,94472.0,94456.0,0.18636594]
[1768335331189,0.105948,94477.0,94459.0,0.18636594]
[1768335331389,0.105948,94477.0,94460.0,0.09423292]
[1768335331589,0.09536,94477.0,94460.0,0.09423292]
[1768335332194,0.09536,94477.0,94462.0,0.09423292]
[1768335332393,5e-05,94473.0,94462.0,0.08423292]
[1768335333586,0.010588,94482.0,94463.0,0.09213302]
[1768335334098,0.010588,94480.0,94463.0,0.09213302]
[1768335334284,0.29336,94484.0,94463.0,0.09213302]
[1768335334489,5e-05,94473.0,94464.0,0.09423292]
[1768335335891,5e-05,94473.0,94459.0,0.09753993]
[1768335336289,5e-05,94473.0,94460.0,0.09753993]
[1768335336492,0.010639,94473.0,94458.0,0.0001588]
[1768335336692,5e-05,94473.0,94458.0,0.0001588]
[1768335336996,0.0921489,94504.0,94479.0,0.16777618]
[1768335337201,0.010586,94501.0,94482.0,0.16777618]
[1768335337392,0.1866045,94498.0,94475.0,0.16777618]
[1768335337606,0.09536,94500.0,94475.0,0.16777618]
[1768335337607,0.1866045,94497.0,94480.0,0.010588]
[1768335337793,0.105946,94500.0,94482.0,0.0001588]
[1768335337990,0.010585,94503.0,94482.0,0.09398721]
[1768335338200,0.09536,94502.0,94482.0,0.09398721]
[1768335338502,0.01831261,94505.0,94482.0,0.0001588]
[1768335338503,0.010586,94499.0,94482.0,0.0001588]
[1768335339002,1.5,94498.0,94482.0,0.0001588]
[1768335340190,1.5,94498.0,94477.0,0.09382841]
[1768335340388,1.50005,94498.0,94477.0,0.09382841]
[1768335341793,0.0001588,94497.0,94480.0,0.09329239]
[1768335341995,0.0001588,94497.0,94478.0,0.010588]
[1768335342196,0.0001588,94497.0,94480.0,0.09329239]
[1768335342392,0.0001588,94497.0,94481.0,0.09382841]
[1768335344200,1.40005,94498.0,94481.0,0.09382841]
[1768335344406,0.01831261,94505.0,94481.0,0.02]
[1768335344706,0.010586,94499.0,94480.0,0.0001588]
[1768335344908,0.09329239,94500.0,94482.0,0.010588]
[1768335345096,0.09329239,94500.0,94481.0,0.09532]
[1768335345600,1.5,94504.0,94481.0,0.09532]
[1768335345601,1.5,94504.0,94482.0,0.010588]
[1768335345807,5e-05,94499.0,94483.0,0.00221825]
[1768335346108,5e-05,94499.0,94484.0,0.010588]
[1768335346296,5e-05,94499.0,94483.0,0.00221825]
[1768335346297,5e-05,94499.0,94482.0,0.010588]
[1768335346490,5e-05,94499.0,94483.0,0.00221825]
[1768335347804,5e-05,94499.0,94483.0,0.00346347]
[1768335349500,5e-05,94499.0,94484.0,0.010587]
[1768335349898,5e-05,94499.0,94485.0,0.00309991]
[1768335350105,0.0001,94499.0,94485.0,0.00309991]
[1768335350500,0.0945556,94499.0,94480.0,0.00325871]
[1768335350801,0.0945556,94499.0,94480.0,0.00122107]
[1768335351912,0.0921489,94498.0,94478.0,0.09532]
[1768335352110,0.09329239,94490.0,94478.0,0.09532]
[1768335352296,0.0944556,94497.0,94478.0,0.09532]
[1768335352619,0.18774799,94490.0,94467.0,0.00020575]
[1768335352808,0.18774799,94490.0,94471.0,0.00020575]
[1768335353009,0.18774799,94490.0,94471.0,0.03020575]
[1768335353212,0.18774799,94490.0,94472.0,0.00020575]
[1768335353402,0.18774799,94490.0,94472.0,0.02020575]
[1768335353597,0.09329239,94482.0,94469.0,0.0001588]
[1768335353900,0.010588,94476.0,94453.0,0.00529364]
[1768335354096,0.1050436,94480.0,94453.0,0.06978379]
[1768335354310,0.010588,94478.0,94453.0,0.06978379]
[1768335354505,0.0944556,94478.0,94454.0,0.010591]
[1768335354697,0.0944556,94478.0,94454.0,0.06]